bitfinex/quotes_ETHUSD_20240607
["timestamp","ask_amount","ask_price","bid_price","bid_amount"]
[1717787475404,3.0,3666.7,3666.0,1.93]
[1717787475636,2.2879,3666.8,3666.0,1.93]
[1717787475943,2.2879,3666.8,3665.7,1.93]
[1717787482103,2.2879,3666.8,3665.7,4.65792]
[1717787484008,2.2879,3666.8,3665.8,2.4046]
[1717787484214,2.2879,3666.8,3665.9,0.706252]
[1717787484413,2.2879,3666.8,3665.8,2.4046]
[1717787484927,5.2957,3667.0,3665.8,2.3132]
[1717787485137,5.2957,3667.0,3666.1,1.93]
[1717787486143,4.2957,3667.0,3666.7,1.93]
[1717787486348,1.1374619,3666.9,3666.7,1.93]
[1717787486545,4.2957,3667.0,3666.7,1.93]
[1717787486851,2.2735,3667.4,3666.7,1.93]
[1717787487151,2.2735,3667.4,3665.8,2.3132]
[1717787487152,2.2735,3667.4,3667.1,1.93]
[1717787487333,6.07891897,3667.5,3667.1,1.93]
[1717787489171,3.0,3667.4,3667.1,1.93]
[1717787490434,2.3813,3667.7,3667.1,1.93]
[1717787491830,3.5273219,3667.7,3667.1,1.93]
[1717787492029,3.0,3667.6,3667.1,1.93]
[1717787492221,3.0,3667.6,3667.5,1.93]
[1717787492829,2.3813,3667.7,3667.5,1.93]
[1717787494058,2.3813,3667.7,3666.6,1.93]
[1717787494059,2.4705,3667.5,3666.0,2.72772]
[1717787494366,2.4705,3667.3,3666.9,1.93]
[1717787494570,3.86335466,3667.3,3666.9,1.93]
[1717787494861,6.86335466,3667.3,3666.9,1.93]
[1717787495033,1.29422736,3667.2,3666.9,1.93]
[1717787495220,4.29422736,3667.2,3666.9,1.93]
[1717787499991,2.4705,3667.3,3666.9,1.93]
[1717787502093,3.0,3667.4,3666.9,1.93]
[1717787502287,3.0,3667.4,3666.6,4.65727]
[1717787502288,3.0,3667.4,3667.3,1.93]
[1717787502585,6.07891897,3667.5,3667.3,1.93]
[1717787502747,3.0,3667.8,3667.3,1.93]
[1717787502951,3.0,3667.9,3667.7,1.93]
[1717787503156,4.07176109,3667.9,3667.7,1.93]
[1717787503598,1.07176109,3667.9,3667.7,1.93]
[1717787503787,2.4178,3668.0,3667.7,1.93]
[1717787503972,6.07891897,3668.4,3667.7,1.93]
[1717787504170,8.47581897,3668.4,3667.2,2.72684]
[1717787504370,8.47581897,3668.4,3668.3,1.93]
[1717787504959,11.47581897,3668.4,3668.1,1.93]
[1717787505291,3.8475819,3668.3,3668.1,1.93]
[1717787508396,3.0,3668.3,3668.1,1.93]
[1717787508578,3.0,3668.7,3668.1,1.93]
[1717787508906,3.0,3668.7,3668.6,1.93]
[1717787509103,6.07891897,3668.8,3668.6,1.93]
[1717787509464,6.07891897,3668.8,3668.4,3.86]
[1717787511500,5.07891897,3668.8,3668.4,3.86]
[1717787512012,5.07891897,3669.3,3668.4,6.6192]
[1717787512167,5.07891897,3669.3,3669.1,1.93]
[1717787512368,7.43,3669.8,3669.1,1.93]
[1717787512588,7.43,3669.8,3669.7,1.93]
[1717787512788,7.43,3669.8,3669.3,1.93]
[1717787514014,8.173,3669.8,3668.4,5.54701]
[1717787514286,3.74235466,3669.7,3667.9,2.72629]
[1717787514428,3.74235466,3669.7,3668.6,1.93]
[1717787514637,1.19153547,3669.6,3668.6,1.93]
[1717787514843,4.19153547,3669.6,3668.6,1.93]
[1717787514994,3.0,3669.6,3669.0,1.93]
[1717787515193,5.3495,3669.7,3669.4,1.93]
[1717787515393,3.0,3669.7,3669.4,1.93]
[1717787517226,7.43,3670.7,3669.0,1.93]
[1717787517431,0.24785,3670.6,3669.6,1.93]
[1717787517604,2.3499,3670.5,3669.1,1.93]
[1717787517934,1.39285466,3670.4,3668.9,2.72556]
[1717787518233,2.3499,3670.3,3669.2,1.93]
[1717787518418,1.76713013,3670.2,3669.2,1.93]
[1717787518990,4.76713013,3670.2,3669.2,1.93]
[1717787519189,3.85035466,3670.1,3667.3,7.70349078]
[1717787519400,2.4575,3669.9,3668.6,1.93]
[1717787519717,1.39285466,3669.8,3668.6,1.93]
[1717787520036,0.68503547,3669.7,3668.6,1.93]
[1717787520206,2.07789013,3669.7,3668.6,1.93]
[1717787520406,5.07789013,3669.7,3668.6,1.93]
[1717787520636,2.2989,3669.5,3668.6,1.93]
[1717787520863,1.39285466,3669.4,3668.6,1.93]
[1717787520995,0.36917547,3669.3,3668.6,1.93]
[1717787521397,2.2989,3669.1,3667.5,2.72662]
[1717787521625,2.2604,3668.9,3667.2,0.27057114]
[1717787521904,3.65325466,3668.8,3667.4,1.93]
[1717787522240,3.0,3668.7,3667.8,1.93]
[1717787522444,0.66532547,3668.6,3667.8,1.93]
[1717787522810,0.66532547,3668.6,3668.2,1.93]
[1717787523202,1.39285466,3668.5,3667.5,1.93]
[1717787523538,0.66532547,3668.6,3667.9,1.93]
[1717787523739,0.59257255,3668.5,3667.9,1.93]
[1717787524232,2.2604,3668.8,3667.9,1.93]
[1717787524233,3.0,3668.7,3667.9,1.93]
[1717787524438,2.2604,3668.8,3667.9,1.93]
[1717787525310,2.2604,3668.8,3668.3,1.93]
[1717787526323,3.65325466,3668.8,3668.3,1.93]
[1717787526603,3.0,3668.7,3668.3,1.93]
[1717787526807,3.0,3668.9,3668.3,1.93]
[1717787527013,3.0,3668.9,3668.8,1.93]
[1717787527236,7.43,3669.0,3668.8,1.93]
[1717787528795,7.43,3669.7,3668.9,2.72555]
[1717787529023,7.43,3669.7,3669.5,1.93]
[1717787529546,7.43,3670.6,3669.6,1.14785322]
[1717787529713,9.7485,3671.2,3670.5,1.93]
[1717787529913,7.43,3671.5,3670.9,1.93]
[1717787530405,8.82285466,3671.5,3670.5,1.93]
[1717787530606,1.39285466,3671.4,3669.6,3.27502]
[1717787530805,0.88228547,3671.3,3669.8,1.93]
[1717787531026,2.2867,3671.1,3669.8,1.93]
[1717787531343,2.2867,3671.1,3668.8,2.4031]
[1717787531344,1.39285466,3671.0,3669.1,2.72544]
[1717787531500,0.75,3670.7,3669.1,2.72544]
[1717787531705,2.3757,3670.5,3669.1,2.72544]
[1717787531922,1.84471013,3670.4,3668.6,2.72576]
[1717787532128,4.84471013,3670.4,3669.6,1.93]
[1717787532439,1.39285466,3670.3,3668.8,2.72568]
[1717787532640,4.39285466,3670.3,3669.5,1.93]
[1717787532962,0.72204101,3670.2,3669.5,1.93]
[1717787534244,2.11489567,3670.2,3669.5,1.93]
[1717787535571,0.72204101,3670.2,3669.5,1.93]
[1717787536015,3.45185547,3670.4,3669.5,1.93]
[1717787536874,1.39285466,3670.3,3669.5,1.93]
[1717787537038,1.39285466,3670.3,3669.2,1.93]
[1717787539360,1.39285466,3670.3,3669.6,1.93]
[1717787540310,3.45185547,3670.4,3670.0,1.93]
[1717787540512,0.58275555,3670.3,3670.0,1.93]
[1717787540725,0.58275555,3670.3,3669.8,1.93]
[1717787540956,1.97561021,3670.3,3669.8,1.93]
[1717787541785,0.58275555,3670.3,3669.8,1.93]
[1717787542060,0.6410311,3670.2,3669.8,1.93]
[1717787543345,3.45185547,3670.4,3669.8,1.93]
[1717787544762,0.45185547,3670.4,3669.8,1.93]
[1717787545185,3.0,3670.6,3669.8,1.93]
[1717787545474,3.0,3670.6,3670.2,1.93]
[1717787546032,5.2753,3671.0,3670.2,1.93]
[1717787546231,5.2753,3671.0,3670.6,1.93]
[1717787546427,3.0,3671.0,3670.6,1.93]
[1717787546687,1.043,3671.0,3670.6,1.93]
[1717787547033,7.43,3671.1,3670.6,1.93]
[1717787547230,22.1966,3671.5,3670.6,1.93]
[1717787547434,9.8166,3671.5,3670.6,1.93]
[1717787548042,7.43,3671.5,3671.0,1.93]
[1717787548244,8.173,3671.5,3671.0,1.93]
[1717787549161,3.0,3671.4,3671.0,1.93]
[1717787549939,7.43,3671.5,3671.0,1.93]
[1717787550261,7.43,3671.5,3671.4,1.93]
[1717787550568,2.4086,3672.0,3671.0,1.93]
[1717787550777,2.22266,3671.9,3671.0,1.93]
[1717787551376,5.22266,3671.9,3671.0,1.93]
[1717787552886,7.43,3672.1,3671.3,1.93]
[1717787553090,3.0,3672.0,3671.4,2.72375]
[1717787553238,3.0,3672.0,3671.4,3.19457248]
[1717787553443,3.0,3672.0,3671.7,1.93]
[1717787553868,0.008,3672.5,3671.9,2.72335]
[1717787554079,7.43,3673.1,3671.8,1.93]
[1717787554080,0.008,3672.9,3671.8,1.93]
[1717787554242,1.39285466,3672.8,3671.8,1.93]
[1717787554437,2.3841,3672.6,3671.5,2.72364]
[1717787554673,1.39285466,3672.5,3671.6,1.93]
[1717787555036,1.39285466,3672.5,3671.7,2.72352]
[1717787555037,3.0,3672.5,3671.7,2.72352]
[1717787555354,0.14008547,3672.7,3671.7,2.72352]
[1717787555355,0.14808547,3672.7,3672.0,1.93]
[1717787555556,0.14008547,3672.7,3672.0,1.93]
[1717787558067,0.14008547,3672.7,3672.0,4.65327]
[1717787558265,0.008,3672.8,3672.0,4.65327]
[1717787558464,0.008,3672.9,3672.0,4.65327]
[1717787558856,0.008,3672.9,3672.4,1.93]
[1717787559056,3.0,3673.0,3672.4,1.93]
[1717787561372,3.0,3673.0,3672.8,1.93]
[1717787561586,3.0,3673.0,3672.3,2.72304]
[1717787561587,3.0,3673.0,3672.3,4.65304]
[1717787561907,3.0,3673.0,3672.3,5.345484]
[1717787561908,0.008,3673.0,3672.3,5.345484]
[1717787562199,0.008,3673.2,3672.3,5.345484]
[1717787562900,0.008,3673.2,3672.8,2.7227]
[1717787563214,0.008,3673.4,3672.9,2.72263]
[1717787563512,0.008,3673.5,3673.1,1.93]
[1717787563679,0.008,3673.6,3673.2,2.72241]
[1717787564004,0.008,3673.6,3673.5,1.93]
[1717787564190,0.008,3673.7,3673.5,1.93]
[1717787565390,0.008,3673.7,3673.5,2.395241]
[1717787565716,0.008,3673.7,3673.6,2.72212]
[1717787565927,0.008,3673.7,3673.6,3.27212]
[1717787566274,0.008,3673.7,3673.6,5.68842]
[1717787567709,0.1234008,3673.8,3673.6,6.77618788]
[1717787567912,7.43,3675.0,3673.7,2.66671296]
[1717787568205,0.75,3676.4,3673.7,2.66671296]
[1717787568206,7.43,3676.3,3674.9,1.93]
[1717787568509,7.43,3676.3,3675.1,2.72095]
[1717787568885,7.43,3676.3,3675.7,1.93]
[1717787569083,7.43,3676.7,3675.8,2.72049]
[1717787569272,2.4923,3677.1,3676.1,1.93]
[1717787569273,9.9223,3677.1,3676.1,1.93]
[1717787569608,9.9223,3677.1,3676.2,0.55]
[1717787569795,9.9223,3677.1,3675.8,2.72049]
[1717787569796,11.31515466,3677.1,3675.8,2.72049]
[1717787569999,1.39285466,3677.0,3675.8,2.72049]
[1717787570202,1.13151547,3676.9,3675.3,2.72081]
[1717787570398,1.39285466,3676.8,3675.4,0.55]
[1717787570732,1.39285466,3676.8,3675.3,2.72081]
[1717787571107,1.39285466,3676.8,3674.7,1.93]
[1717787571108,1.39285466,3676.8,3674.8,2.72118]
[1717787571311,1.39285466,3676.8,3674.9,0.55]
[1717787571513,0.25243701,3676.7,3674.9,0.55]
[1717787571724,1.39285466,3676.6,3675.0,2.72103]
[1717787571936,1.39285466,3676.6,3675.1,2.48]
[1717787572228,3.25243701,3676.7,3675.2,2.72087]
[1717787572528,1.13151547,3676.9,3675.6,2.72062]
[1717787572734,1.13151547,3676.9,3676.0,2.72032]
[1717787572927,0.1234008,3677.5,3676.3,1.93]
[1717787573136,0.1234008,3677.5,3676.4,2.72004]
[1717787574471,0.1234008,3677.5,3675.9,2.72036]
[1717787574594,0.37122088,3677.5,3676.1,2.72021]
[1717787575019,0.37122088,3677.5,3676.2,0.55]
[1717787575738,1.76407554,3677.5,3676.3,2.72011]
[1717787575919,0.57260209,3677.4,3676.3,2.72011]
[1717787576637,0.57260209,3677.4,3675.7,6.07886436]
[1717787576638,0.57260209,3677.4,3676.5,2.71997]
[1717787577009,0.57260209,3677.4,3676.6,0.55]
[1717787577218,0.1234008,3677.5,3676.7,3.30356769]
[1717787577414,0.1234008,3677.5,3676.8,0.55]
[1717787577646,0.1234008,3677.5,3676.8,3.26971]
[1717787577853,0.1234008,3677.5,3676.8,2.71971]
[1717787578232,0.1234008,3677.5,3677.0,2.7196]
[1717787578753,0.1234008,3677.5,3676.6,0.32261213]
[1717787578964,0.1234008,3677.5,3676.5,2.7199]
[1717787579319,0.25013008,3677.4,3676.2,0.35644546]
[1717787579715,0.25013008,3677.4,3676.3,2.7201]
[1717787579916,0.25013008,3677.4,3676.4,0.35644546]
[1717787580217,1.64298474,3677.4,3676.4,0.35644546]
[1717787580527,1.64298474,3677.4,3675.7,0.35644546]
[1717787580528,2.85028321,3677.3,3675.7,0.35644546]
[1717787580715,2.85028321,3677.3,3675.7,2.7205]
[1717787580921,3.0,3677.2,3675.7,3.4632467]
[1717787581129,1.39285466,3677.1,3675.7,2.7205]
[1717787581335,0.58502832,3677.0,3675.7,2.7205]
[1717787581574,1.39285466,3676.9,3675.7,2.7205]
[1717787582241,0.58502832,3677.0,3675.7,2.7205]
[1717787582443,3.0,3677.2,3676.1,2.72023]
[1717787582720,1.39285466,3677.2,3676.2,0.35644546]
[1717787582849,1.39285466,3677.2,3676.3,2.72009]
[1717787582850,3.0,3677.2,3676.3,2.72009]
[1717787583046,0.47075586,3677.1,3676.4,0.35644546]
[1717787583501,0.47075586,3677.1,3675.9,2.72041]
[1717787583801,0.47075586,3677.1,3676.1,2.72023]
[1717787583968,0.47075586,3677.1,3676.2,0.35644546]
[1717787584169,1.45742855,3677.3,3676.2,0.35644546]
[1717787584494,2.85028321,3677.3,3676.2,0.35644546]
[1717787584841,3.0,3677.2,3676.2,0.35644546]
[1717787585165,3.0,3677.2,3676.5,2.71997]
[1717787585404,0.25013008,3677.4,3676.5,2.71997]
[1717787585579,0.1234008,3677.5,3676.8,2.7197]
[1717787585906,0.1234008,3677.5,3676.9,0.38636213]
[1717787586081,0.1234008,3677.5,3676.8,2.7197]
[1717787587108,3.1234008,3677.5,3676.8,2.7197]
[1717787587569,0.1234008,3677.5,3676.8,2.7197]
[1717787587775,0.1234008,3677.5,3677.0,2.71954]
[1717787591501,0.1234008,3677.5,3677.4,2.71931]
[1717787595119,0.1234008,3677.5,3677.0,2.71957]
[1717787595629,0.1234008,3677.5,3676.6,2.71989]
[1717787595924,2.4125,3677.4,3676.2,2.72016]
[1717787596132,0.25359008,3677.3,3676.2,2.72016]
[1717787596717,3.25359008,3677.3,3676.2,2.72016]
[1717787596922,1.39285466,3677.2,3675.7,2.72052]
[1717787598018,3.25359008,3677.3,3676.0,2.72029]
[1717787598228,2.71953918,3677.2,3675.5,2.72065]
[1717787598389,3.0,3677.1,3675.8,2.72042]
[1717787599282,2.71953918,3677.2,3675.8,2.72042]
[1717787600023,2.2524,3677.1,3675.8,2.72042]
[1717787600183,1.91540759,3677.0,3675.8,2.72042]
[1717787600784,1.91540759,3677.0,3675.4,2.559]
[1717787600999,1.91540759,3677.0,3675.3,2.7208]
[1717787601228,2.4333,3676.8,3674.9,5.28016]
[1717787601390,2.4333,3676.4,3674.5,1.088891]
[1717787601712,1.85047013,3676.3,3674.6,1.06110578]
[1717787602070,2.4333,3676.4,3675.2,2.72087]
[1717787602196,2.4333,3676.4,3675.5,2.72064]
[1717787602538,2.4333,3676.4,3675.1,5.28]
[1717787602539,3.82615466,3676.4,3675.1,5.28]
[1717787602717,2.4333,3676.4,3675.1,5.28]
[1717787602923,2.4333,3676.4,3675.4,2.72072]
[1717787603089,2.4333,3676.4,3675.6,2.72061]
[1717787603401,7.43,3676.5,3675.9,2.72036]
[1717787603605,9.7625,3676.9,3675.9,2.72036]
[1717787603800,1.39285466,3676.8,3675.6,2.559]
[1717787604131,1.39285466,3676.8,3675.5,2.72069]
[1717787604132,9.7625,3676.9,3675.9,2.72036]
[1717787604427,10.92367374,3676.9,3675.9,2.72036]
[1717787604992,1.39285466,3676.8,3675.6,2.559]
[1717787605207,10.92367374,3676.9,3675.6,2.559]
[1717787605451,12.3165284,3676.9,3675.6,2.559]
[1717787605606,1.39285466,3676.8,3675.7,2.72056]
[1717787605924,1.28390813,3676.7,3675.7,2.72056]
[1717787606088,1.28390813,3676.7,3676.0,2.72027]
[1717787606912,1.39285466,3676.6,3675.6,2.559]
[1717787607128,1.39285466,3676.6,3675.5,2.72065]
[1717787607328,1.28390813,3676.7,3676.1,2.72021]
[1717787607535,2.2724,3677.2,3676.1,2.72021]
[1717787607706,1.39285466,3676.7,3675.6,5.27964]
[1717787608828,1.39285466,3676.7,3675.6,2.72064]
[1717787609027,3.64685466,3676.6,3675.2,2.7209]
[1717787609224,0.36468547,3676.5,3675.2,2.7209]
[1717787609453,1.39285466,3676.4,3675.2,2.7209]
[1717787609639,0.36468547,3676.5,3675.5,2.72067]
[1717787609835,0.36468547,3676.5,3675.1,2.72098]
[1717787612359,0.36468547,3676.5,3674.6,2.559]
[1717787612360,2.4532,3676.3,3674.7,2.72126]
[1717787612563,2.4532,3676.1,3674.3,2.72157]
[1717787612715,2.4532,3676.1,3673.5,2.4503726]
[1717787612716,2.4532,3675.7,3673.5,2.764241]
[1717787612919,1.39285466,3675.6,3673.5,3.0374189]
[1717787613245,2.4532,3675.5,3673.9,2.72185]
[1717787613452,1.39285466,3675.4,3673.9,2.72185]
[1717787613613,1.39285466,3675.4,3674.2,2.72164]
[1717787613818,2.4532,3675.5,3674.5,2.72143]
[1717787614013,0.24532,3675.4,3674.5,2.72143]
[1717787614359,2.4532,3675.5,3674.8,2.72117]
[1717787615355,7.43,3675.7,3675.1,2.72097]
[1717787615670,2.3948,3675.9,3675.1,2.72097]
[1717787616043,2.3948,3675.9,3674.3,4.98427]
[1717787616044,2.3948,3675.9,3675.4,2.72076]
[1717787616236,7.43,3676.1,3675.4,2.72076]
[1717787616587,7.43,3676.1,3675.7,2.72054]
[1717787617112,7.43,3676.1,3675.7,4.64154]
[1717787617390,7.43,3677.2,3676.3,2.72007]
[1717787617534,7.43,3677.2,3676.3,2.992077]
[1717787617737,7.43,3677.2,3676.6,2.71985]
[1717787619833,7.43,3677.2,3676.9,2.71962]
[1717787620261,7.43,3678.0,3677.4,2.71931]
[1717787620663,0.0234008,3677.5,3677.4,2.71931]
[1717787623960,0.0234008,3677.5,3676.9,2.71962]
[1717787624276,0.0234008,3677.5,3676.5,2.71996]
[1717787624578,0.24626008,3677.4,3676.5,2.71996]
[1717787628320,0.0234008,3677.5,3676.5,2.71996]
[1717787629011,1.41625546,3677.5,3676.5,2.71996]
[1717787630126,1.39285466,3677.4,3676.1,2.72026]
[1717787631627,0.0234008,3677.5,3676.6,2.71989]
[1717787633062,0.0234008,3677.5,3676.0,2.72027]
[1717787633063,1.39285466,3677.4,3676.0,2.72027]
[1717787633224,0.38554555,3677.3,3676.0,2.72027]
[1717787635842,0.38554555,3677.3,3676.5,2.71994]
[1717787638143,0.38554555,3677.3,3676.1,2.72025]
[1717787638315,1.77840021,3677.3,3676.1,2.72025]
[1717787639718,0.38554555,3677.3,3676.4,2.71999]
[1717787639915,0.38554555,3677.3,3676.5,1.919]
[1717787640114,0.38554555,3677.3,3676.6,2.71987]
[1717787640913,0.0234008,3677.5,3676.6,2.71987]
[1717787642107,0.0234008,3677.5,3676.9,2.71966]
[1717787642310,0.0234008,3677.5,3677.2,2.71944]
[1717787642685,0.0234008,3677.5,3677.3,1.919]
[1717787642807,0.0234008,3677.5,3677.4,2.71931]
[1717787643055,0.0234008,3677.5,3677.4,3.733141]
[1717787643239,0.0234008,3677.5,3677.4,2.71931]
[1717787645248,0.0234008,3677.5,3677.2,1.919]
[1717787645448,0.0234008,3677.5,3677.0,2.71956]
[1717787647647,0.0234008,3677.5,3677.3,2.71934]
[1717787650444,0.0234008,3677.5,3677.4,0.55]
[1717787651015,0.0234008,3677.5,3676.9,2.71965]
[1717787651359,0.028,3677.0,3676.9,2.71965]
[1717787652013,0.028,3677.0,3676.9,3.183515]
[1717787652823,0.028,3677.0,3676.9,2.71965]
[1717787655315,0.028,3677.0,3676.5,2.71991]
[1717787655438,0.028,3677.0,3676.7,1.919]
[1717787655634,2.3167,3676.9,3676.5,2.71991]
[1717787656081,2.3167,3676.9,3675.4,2.4726]
[1717787656082,2.55117,3676.9,3676.1,2.72021]
[1717787656296,1.39285466,3676.8,3675.7,4.63951]
[1717787656432,2.4308,3676.7,3676.0,2.72032]
[1717787656626,2.4308,3676.7,3676.1,1.919]
[1717787658149,2.4308,3676.7,3676.5,2.71994]
[1717787658336,0.028,3677.0,3676.5,4.63894]
[1717787658744,0.028,3677.0,3676.5,2.71994]
[1717787659004,0.27504,3677.0,3676.5,2.71994]
[1717787659347,1.66789466,3677.0,3676.1,4.63922]
[1717787661986,0.27504,3677.0,3676.1,4.63922]
[1717787662290,0.028,3677.0,3676.5,1.919]
[1717787662642,0.028,3677.0,3676.4,2.72003]
[1717787665171,0.028,3677.0,3676.9,1.919]
[1717787665557,0.028,3677.0,3676.9,2.469]
[1717787665885,0.0234008,3677.5,3676.9,6.51768732]
[1717787666046,0.0234008,3677.5,3677.4,2.71931]
[1717787666478,0.0234008,3677.5,3677.4,3.26931]
[1717787667396,0.0234008,3677.5,3677.4,4.30082186]
[1717787667549,7.43,3678.1,3678.0,2.71886]
[1717787667891,2.4549,3679.1,3678.0,4.909746]
[1717787668179,2.4549,3679.1,3678.4,2.71855]
[1717787669075,2.4049,3679.1,3678.4,2.71855]
[1717787669268,7.43,3679.2,3678.5,1.919]
[1717787669450,7.43,3679.2,3678.7,2.71834]
[1717787669783,7.43,3679.2,3678.9,2.71818]
[1717787670095,7.43,3679.7,3678.9,2.71818]
[1717787670395,7.43,3679.7,3678.9,4.63718]
[1717787671158,7.43,3680.1,3678.9,4.63718]
[1717787671354,12.38,3680.6,3678.9,4.63718]
[1717787671355,1.39285466,3680.0,3678.9,4.63718]
[1717787671559,0.13928547,3679.9,3678.9,4.63718]
[1717787671963,0.13928547,3679.9,3678.9,2.71818]
[1717787672184,2.62388547,3679.9,3678.9,2.71818]
[1717787673116,1.39285466,3679.8,3678.4,2.7185]
[1717787673285,0.40167401,3679.7,3678.4,2.7185]
[1717787673612,1.39285466,3679.6,3678.4,2.7185]
[1717787673907,0.40167401,3679.7,3678.6,2.71837]
[1717787674715,1.39285466,3679.6,3678.6,2.71837]
[1717787675190,0.40167401,3679.7,3678.6,2.71837]
[1717787675393,0.2886274,3679.6,3678.6,2.71837]
[1717787676274,1.39285466,3679.5,3678.6,2.71837]
[1717787676552,1.39285466,3679.5,3678.2,2.7187]
[1717787677216,2.4131,3679.4,3677.8,2.71898]
[1717787677391,1.39285466,3679.3,3677.8,2.71898]
[1717787677594,1.39285466,3679.3,3677.6,1.919]
[1717787677595,1.39285466,3679.3,3678.1,2.71874]
[1717787677905,4.39285466,3679.3,3678.1,2.71874]
[1717787682897,4.39285466,3679.3,3677.7,2.71903]
[1717787683095,0.69741029,3679.2,3677.7,2.71903]
[1717787683276,1.39285466,3679.1,3677.7,2.71903]
[1717787684125,2.4946,3679.0,3677.2,1.919]
[1717787684423,2.4946,3679.0,3677.3,2.71933]
[1717787684424,2.4946,3678.9,3677.3,2.71933]
[1717787684585,1.39285466,3678.8,3677.3,2.71933]
[1717787684961,2.3451,3678.6,3677.3,2.71933]
[1717787685085,1.39285466,3678.5,3677.3,2.71933]
[1717787685803,1.39285466,3678.5,3677.6,2.71914]
[1717787685998,1.39285466,3678.5,3677.6,4.63814]
[1717787686931,5.3451,3678.6,3677.6,4.63814]
[1717787687085,2.3451,3678.6,3677.9,2.71889]
[1717787687700,7.43,3678.9,3677.9,2.71889]
[1717787689443,2.3389,3679.1,3677.9,2.71889]
[1717787689617,1.39285466,3679.0,3677.9,2.71889]
[1717787689821,2.87877116,3679.0,3677.9,2.71889]
[1717787690426,1.39285466,3679.0,3678.2,2.71869]
[1717787691242,7.43,3679.2,3678.2,2.71869]
[1717787691434,1.39285466,3679.1,3678.2,2.71869]
[1717787691743,7.43,3679.2,3678.5,1.919]
[1717787691930,7.43,3679.2,3678.9,1.919]
[1717787692104,7.43,3679.2,3678.8,2.71825]
[1717787692680,7.43,3679.7,3679.2,2.71792]
[1717787692845,7.43,3680.1,3679.2,2.71792]
[1717787693441,7.43,3680.1,3679.2,3.181612]
[1717787693673,1.39285466,3680.0,3679.2,3.181612]
[1717787697260,7.43,3680.1,3679.2,3.181612]
[1717787697490,8.82285466,3680.1,3679.5,2.71768]
[1717787698190,1.39285466,3680.1,3679.5,2.71768]
[1717787699619,1.39285466,3680.0,3679.5,2.71768]
[1717787699886,1.39285466,3680.0,3679.1,2.71805]
[1717787700636,7.43,3680.4,3680.0,2.71738]
[1717787700796,2.2802,3680.8,3680.0,2.71738]
[1717787701346,2.2802,3680.8,3679.4,2.71777]
[1717787701606,2.2759,3680.7,3679.4,2.71777]
[1717787701749,2.2759,3680.7,3678.8,4.6372]
[1717787702422,1.27059,3680.6,3678.8,5.10092]
[1717787702639,4.27059,3680.6,3679.2,1.919]
[1717787704421,2.2896,3680.5,3678.8,2.7182]
[1717787704637,2.2896,3680.5,3677.7,2.7623114]
[1717787704638,0.75,3680.2,3678.2,2.71866]
[1717787704944,3.427059,3680.5,3678.2,2.71866]
[1717787704945,0.75,3680.0,3678.2,2.71866]
[1717787705095,2.3714,3679.9,3678.2,2.71866]
[1717787705296,2.3714,3679.7,3678.2,2.71866]
[1717787705627,2.3714,3679.7,3679.0,1.919]
[1717787706833,2.3714,3679.7,3678.2,2.71871]
[1717787708042,2.3714,3679.7,3678.4,1.919]
[1717787709143,2.3714,3679.7,3678.5,2.71848]
[1717787709378,0.23714,3679.6,3678.5,2.71848]
[1717787709716,2.3714,3679.7,3678.4,1.919]
[1717787710050,7.43,3679.9,3679.3,2.71788]
[1717787710348,2.4667,3680.2,3679.3,2.71788]
[1717787710530,0.24667,3680.1,3679.3,2.71788]
[1717787710929,0.24667,3680.1,3678.9,1.919]
[1717787711143,0.24667,3680.1,3678.8,2.71822]
[1717787711326,0.24667,3680.1,3679.2,2.71796]
[1717787711910,0.24667,3680.1,3678.9,1.919]
[1717787712224,2.40719166,3680.0,3678.7,2.71828]
[1717787712409,2.4345,3679.9,3678.7,2.71828]
[1717787712608,1.39285466,3679.8,3678.7,2.71828]
[1717787712946,2.4345,3679.9,3678.7,2.71828]
[1717787712947,1.39285466,3679.7,3678.7,2.71828]
[1717787714442,2.3606,3679.6,3678.3,2.71863]
[1717787714658,2.06820013,3679.5,3678.3,2.71863]
[1717787716173,2.06820013,3679.5,3678.8,1.919]
[1717787717022,2.06820013,3679.5,3678.9,2.71817]
[1717787718378,7.43,3679.9,3679.2,2.71794]
[1717787718583,1.39285466,3679.8,3679.2,2.71794]
[1717787718897,2.4559,3679.7,3678.8,2.71825]
[1717787719229,1.39285466,3679.6,3678.8,2.71825]
[1717787719859,7.43,3679.9,3679.2,2.71797]
[1717787720058,2.16052166,3679.8,3679.2,2.71797]
[1717787720476,0.767667,3679.8,3679.5,2.71773]
[1717787721800,9.8859,3680.3,3679.5,2.71773]
[1717787722002,9.8859,3680.3,3679.9,2.71742]
[1717787722003,11.27875466,3680.3,3679.9,2.71742]
[1717787722176,1.39285466,3680.2,3679.9,2.71742]
[1717787722499,1.132567,3680.1,3679.9,2.71742]
[1717787722704,11.27875466,3680.3,3679.9,2.71742]
[1717787722914,1.39285466,3680.2,3679.4,2.7178]
[1717787724060,1.39285466,3680.2,3679.7,2.71758]
[1717787725809,7.43,3680.3,3679.7,2.71758]
[1717787726109,8.82285466,3680.3,3679.7,2.71758]
[1717787726312,10.94314013,3680.3,3679.7,2.71758]
[1717787726502,1.39285466,3680.2,3679.7,2.71758]
[1717787727731,1.39285466,3680.2,3679.3,2.71786]
[1717787728918,1.39285466,3680.2,3678.9,2.71817]
[1717787728919,2.4105,3680.1,3678.9,2.71817]